[Event "Late-Titled-Tuesday-Blitz-April-23-2024"]
[Site "Chess.com"]
[Date "2024.04.23"]
[Round "2"]
[White "Karacsonyi_Gellert"]
[Black "Naruna_Chan"]
[Result "1-0"]
[WhiteElo "2757"]
[BlackElo "2451"]
[TimeControl "180+1"]
[EndTime "14:18:07 PDT"]
[Termination "Karacsonyi_Gellert won on time"]

1. e4 {[%clk 0:03:00.7]} 1... c5 {[%clk 0:02:59.1]} 2. Nf3 {[%clk 0:02:59.1]}
2... Nc6 {[%clk 0:02:59.4]} 3. d4 {[%clk 0:02:58.5]} 3... cxd4 {[%clk
0:03:00.3]} 4. Nxd4 {[%clk 0:02:59.4]} 4... e5 {[%clk 0:03:00.3]} 5. Nb5 {[%clk
0:02:58.3]} 5... d6 {[%clk 0:03:00.4]} 6. c4 {[%clk 0:02:55.9]} 6... Be7 {[%clk
0:02:59.5]} 7. Be3 {[%clk 0:02:53.9]} 7... a6 {[%clk 0:02:55.9]} 8. N5c3 {[%clk
0:02:53.6]} 8... Nf6 {[%clk 0:02:47.3]} 9. Nd5 {[%clk 0:02:53.3]} 9... O-O
{[%clk 0:02:47]} 10. Nbc3 {[%clk 0:02:49.3]} 10... Nxd5 {[%clk 0:02:46.9]} 11.
Nxd5 {[%clk 0:02:48.8]} 11... b5 {[%clk 0:02:38.2]} 12. Bb6 {[%clk 0:02:42.9]}
12... Qd7 {[%clk 0:02:34.8]} 13. cxb5 {[%clk 0:02:42]} 13... Nd4 {[%clk
0:02:11.5]} 14. Bxd4 {[%clk 0:02:37.2]} 14... exd4 {[%clk 0:02:12.4]} 15. Nb6
{[%clk 0:02:18.8]} 15... Qb7 {[%clk 0:02:08.3]} 16. Nxa8 {[%clk 0:02:17.7]}
16... Qxa8 {[%clk 0:02:00.3]} 17. Bd3 {[%clk 0:02:16.3]} 17... axb5 {[%clk
0:01:58.4]} 18. O-O {[%clk 0:02:15.8]} 18... Bf6 {[%clk 0:01:55]} 19. Qb3 {[%clk
0:02:12.1]} 19... Bb7 {[%clk 0:01:42.6]} 20. Qxb5 {[%clk 0:02:10.4]} 20... Bxe4
{[%clk 0:01:40.5]} 21. Bxe4 {[%clk 0:02:09.8]} 21... Qxe4 {[%clk 0:01:41.4]} 22.
Rfe1 {[%clk 0:02:09.7]} 22... Qc2 {[%clk 0:01:17.5]} 23. Rac1 {[%clk 0:02:07.3]}
23... Qd2 {[%clk 0:01:17.4]} 24. Qe2 {[%clk 0:02:05.5]} 24... Qa5 {[%clk
0:01:15.4]} 25. a3 {[%clk 0:01:57.9]} 25... h6 {[%clk 0:01:13.9]} 26. Qd3 {[%clk
0:01:56.4]} 26... Rb8 {[%clk 0:01:06.3]} 27. b4 {[%clk 0:01:55.6]} 27... Qa4
{[%clk 0:01:02.9]} 28. Qh3 {[%clk 0:01:54.3]} 28... Qa6 {[%clk 0:00:54.7]} 29.
Qd7 {[%clk 0:01:45.5]} 29... d3 {[%clk 0:00:48.5]} 30. Re8+ {[%clk 0:01:32.9]}
30... Rxe8 {[%clk 0:00:47.9]} 31. Qxe8+ {[%clk 0:01:32.3]} 31... Kh7 {[%clk
0:00:48.8]} 32. Qe4+ {[%clk 0:01:32.3]} 32... g6 {[%clk 0:00:46.1]} 33. Rd1
{[%clk 0:01:30.9]} 33... d2 {[%clk 0:00:20.6]} 34. Rxd2 {[%clk 0:01:27.5]} 34...
Qxa3 {[%clk 0:00:20.7]} 35. Qd5 {[%clk 0:01:23.1]} 35... Qxb4 {[%clk 0:00:17.2]}
36. Qxf7+ {[%clk 0:01:19.6]} 36... Bg7 {[%clk 0:00:16.6]} 37. Qd5 {[%clk
0:01:20]} 37... Be5 {[%clk 0:00:14.1]} 38. g3 {[%clk 0:01:16.5]} 38... h5 {[%clk
0:00:13.7]} 39. Rd1 {[%clk 0:01:15.2]} 39... Qb6 {[%clk 0:00:07.1]} 40. Rc1
{[%clk 0:01:10.1]} 40... Bd4 {[%clk 0:00:05.4]} 41. Kg2 {[%clk 0:01:08.1]} 41...
Bc5 {[%clk 0:00:05.6]} 42. Qf7+ {[%clk 0:01:05.8]} 42... Kh6 {[%clk 0:00:05.2]}
43. Qf8+ {[%clk 0:01:05.8]} 43... Kh7 {[%clk 0:00:04.2]} 44. Re1 {[%clk
0:01:04.9]} 44... d5 {[%clk 0:00:03.8]} 45. Qf7+ {[%clk 0:01:04]} 45... Kh6
{[%clk 0:00:03.9]} 46. Re8 {[%clk 0:01:03.8]} 46... Kg5 {[%clk 0:00:01.7]} 47.
h4+ {[%clk 0:01:02.4]} 1-0

[Event "Late-Titled-Tuesday-Blitz-April-23-2024"]
[Site "Chess.com"]
[Date "2024.04.23"]
[Round "2"]
[White "VD_coach"]
[Black "DanielDardha2005"]
[Result "0-1"]
[WhiteElo "2601"]
[BlackElo "2858"]
[TimeControl "180+1"]
[EndTime "14:18:09 PDT"]
[Termination "DanielDardha2005 won on time"]

1. d4 {[%clk 0:03:00.9]} 1... d5 {[%clk 0:02:49.7]} 2. c4 {[%clk 0:03:00]} 2...
c6 {[%clk 0:02:47.1]} 3. Nf3 {[%clk 0:03:00]} 3... Nf6 {[%clk 0:02:47]} 4. Nc3
{[%clk 0:03:00.1]} 4... a6 {[%clk 0:02:45.8]} 5. e3 {[%clk 0:02:59.4]} 5... Bf5
{[%clk 0:02:00.5]} 6. Bd3 {[%clk 0:02:57.2]} 6... Bg6 {[%clk 0:01:55.4]} 7. O-O
{[%clk 0:02:55]} 7... e6 {[%clk 0:01:53.3]} 8. b3 {[%clk 0:02:50.7]} 8... Nbd7
{[%clk 0:01:51.5]} 9. Bb2 {[%clk 0:02:48.9]} 9... Bd6 {[%clk 0:01:51.7]} 10. Rc1
{[%clk 0:02:46.5]} 10... O-O {[%clk 0:01:42.6]} 11. Qe2 {[%clk 0:02:44.8]} 11...
Ne4 {[%clk 0:01:41]} 12. Rfd1 {[%clk 0:02:43.6]} 12... Rc8 {[%clk 0:01:37.6]}
13. Nd2 {[%clk 0:02:02.7]} 13... Nxc3 {[%clk 0:01:31]} 14. Bxc3 {[%clk
0:02:00.5]} 14... Bxd3 {[%clk 0:01:31.7]} 15. Qxd3 {[%clk 0:02:01.1]} 15... b5
{[%clk 0:01:32]} 16. e4 {[%clk 0:01:45.7]} 16... Bb8 {[%clk 0:01:20.3]} 17. e5
{[%clk 0:01:21.7]} 17... dxc4 {[%clk 0:01:18]} 18. bxc4 {[%clk 0:01:20.1]} 18...
Nxe5 {[%clk 0:01:18.3]} 19. Qe2 {[%clk 0:01:09.8]} 19... Ng6 {[%clk 0:01:12.4]}
20. g3 {[%clk 0:01:03.2]} 20... Re8 {[%clk 0:00:50.6]} 21. h4 {[%clk 0:00:45.8]}
21... Ne7 {[%clk 0:00:43.7]} 22. h5 {[%clk 0:00:36.8]} 22... h6 {[%clk
0:00:42.8]} 23. Ne4 {[%clk 0:00:36.2]} 23... bxc4 {[%clk 0:00:42.2]} 24. d5
{[%clk 0:00:20.1]} 24... Nxd5 {[%clk 0:00:36.1]} 25. Qg4 {[%clk 0:00:18.1]}
25... e5 {[%clk 0:00:33.9]} 26. Ba1 {[%clk 0:00:05.3]} 26... Rf8 {[%clk
0:00:24.8]} 27. Rxc4 {[%clk 0:00:05.3]} 27... f5 {[%clk 0:00:24.5]} 28. Qg6
{[%clk 0:00:05.4]} 28... fxe4 {[%clk 0:00:21.7]} 29. Rxc6 {[%clk 0:00:05.5]}
29... Qd7 {[%clk 0:00:15.1]} 30. Rxc8 {[%clk 0:00:04.4]} 30... Rxc8 {[%clk
0:00:16]} 31. Qxe4 {[%clk 0:00:03.6]} 31... Nf6 {[%clk 0:00:13]} 0-1

[Event "Late-Titled-Tuesday-Blitz-April-23-2024"]
[Site "Chess.com"]
[Date "2024.04.23"]
[Round "2"]
[White "Stanbad1"]
[Black "Indefatigable11"]
[Result "0-1"]
[WhiteElo "2614"]
[BlackElo "2411"]
[TimeControl "180+1"]
[EndTime "14:18:09 PDT"]
[Termination "Indefatigable11 won by checkmate"]

1. d4 {[%clk 0:03:00.9]} 1... Nf6 {[%clk 0:02:59.5]} 2. Nc3 {[%clk 0:03:00.4]}
2... d5 {[%clk 0:02:59.4]} 3. Bf4 {[%clk 0:02:59.7]} 3... e6 {[%clk 0:02:57.5]}
4. Nb5 {[%clk 0:02:59.3]} 4... Na6 {[%clk 0:02:56.6]} 5. e3 {[%clk 0:02:59.2]}
5... Be7 {[%clk 0:02:56.3]} 6. Nf3 {[%clk 0:02:58.7]} 6... O-O {[%clk 0:02:56]}
7. h3 {[%clk 0:02:58.3]} 7... c5 {[%clk 0:02:56]} 8. c3 {[%clk 0:02:57.2]} 8...
Bd7 {[%clk 0:02:55.3]} 9. a4 {[%clk 0:02:56.8]} 9... c4 {[%clk 0:02:48.1]} 10.
b3 {[%clk 0:02:55.6]} 10... cxb3 {[%clk 0:02:44.4]} 11. Qxb3 {[%clk 0:02:55.4]}
11... Qa5 {[%clk 0:02:43.7]} 12. Bd3 {[%clk 0:02:52.1]} 12... Bxb5 {[%clk
0:02:31.2]} 13. Bxb5 {[%clk 0:02:51.7]} 13... Ne4 {[%clk 0:02:30.6]} 14. O-O
{[%clk 0:02:47.6]} 14... Nxc3 {[%clk 0:02:24.7]} 15. Bd3 {[%clk 0:02:44.4]}
15... Qb4 {[%clk 0:02:15.1]} 16. Qc2 {[%clk 0:02:39.4]} 16... h6 {[%clk
0:02:11.9]} 17. Rfb1 {[%clk 0:02:18.6]} 17... Nxb1 {[%clk 0:02:06.9]} 18. Rxb1
{[%clk 0:02:19.5]} 18... Qa5 {[%clk 0:02:01.8]} 19. Rxb7 {[%clk 0:02:18.9]}
19... Bf6 {[%clk 0:01:52.2]} 20. Bd6 {[%clk 0:02:02.1]} 20... Rfc8 {[%clk
0:01:51]} 21. Qd1 {[%clk 0:01:19.4]} 21... Rc6 {[%clk 0:01:49.3]} 22. Be5 {[%clk
0:01:15.9]} 22... Rac8 {[%clk 0:01:43.9]} 23. Kh2 {[%clk 0:01:12.4]} 23... Bxe5+
{[%clk 0:01:39.4]} 24. Nxe5 {[%clk 0:01:11.7]} 24... Rc1 {[%clk 0:01:39.2]} 25.
Qg4 {[%clk 0:01:08.7]} 25... R8c7 {[%clk 0:01:29.5]} 26. Rb5 {[%clk 0:01:06.9]}
26... Qe1 {[%clk 0:01:25.9]} 27. Rb2 {[%clk 0:00:55.2]} 27... Nb4 {[%clk
0:01:20.6]} 28. Be2 {[%clk 0:00:33.8]} 28... Qc3 {[%clk 0:00:54.9]} 29. Rxb4
{[%clk 0:00:18.9]} 29... Qxb4 {[%clk 0:00:54]} 30. Nd3 {[%clk 0:00:19.8]} 30...
Qd2 {[%clk 0:00:49.2]} 31. Nxc1 {[%clk 0:00:19.7]} 31... Rxc1 {[%clk 0:00:49.1]}
32. Bf3 {[%clk 0:00:17.4]} 32... Qxf2 {[%clk 0:00:47]} 33. Qf4 {[%clk
0:00:17.8]} 33... Re1 {[%clk 0:00:37.6]} 34. Qb8+ {[%clk 0:00:16.6]} 34... Kh7
{[%clk 0:00:34.4]} 35. Qf4 {[%clk 0:00:17.2]} 35... Qxe3 {[%clk 0:00:26.6]} 36.
Qxf7 {[%clk 0:00:16.6]} 36... Qxd4 {[%clk 0:00:26.2]} 37. h4 {[%clk 0:00:13]}
37... Qxh4# {[%clk 0:00:09.6]} 0-1

[Event "Late-Titled-Tuesday-Blitz-April-23-2024"]
[Site "Chess.com"]
[Date "2024.04.23"]
[Round "2"]
[White "Denmark2015"]
[Black "artin10862"]
[Result "0-1"]
[WhiteElo "2610"]
[BlackElo "2911"]
[TimeControl "180+1"]
[EndTime "14:18:11 PDT"]
[Termination "artin10862 won on time"]

1. d4 {[%clk 0:03:00.9]} 1... Nf6 {[%clk 0:02:55.8]} 2. c4 {[%clk 0:03:00.6]}
2... b6 {[%clk 0:02:55.7]} 3. Nc3 {[%clk 0:03:00.4]} 3... Bb7 {[%clk 0:02:52.1]}
4. a3 {[%clk 0:02:54.7]} 4... e6 {[%clk 0:02:45.8]} 5. d5 {[%clk 0:02:54.7]}
5... c6 {[%clk 0:02:23.2]} 6. e4 {[%clk 0:02:53.8]} 6... cxd5 {[%clk 0:02:23.2]}
7. cxd5 {[%clk 0:02:53.6]} 7... exd5 {[%clk 0:02:23.4]} 8. exd5 {[%clk
0:02:53.6]} 8... Bc5 {[%clk 0:02:15.2]} 9. Be2 {[%clk 0:02:46.1]} 9... O-O
{[%clk 0:02:08]} 10. Nf3 {[%clk 0:02:42.2]} 10... Na6 {[%clk 0:02:07.6]} 11. O-O
{[%clk 0:02:03]} 11... Nc7 {[%clk 0:02:06.9]} 12. Bc4 {[%clk 0:01:44.3]} 12...
a6 {[%clk 0:01:53.5]} 13. Bf4 {[%clk 0:01:36.1]} 13... b5 {[%clk 0:01:51.1]} 14.
Ba2 {[%clk 0:01:32.1]} 14... d6 {[%clk 0:01:50.9]} 15. b4 {[%clk 0:01:22.8]}
15... Bb6 {[%clk 0:01:50.3]} 16. Qd3 {[%clk 0:01:23.4]} 16... Re8 {[%clk
0:01:43.8]} 17. h3 {[%clk 0:01:16.9]} 17... Rc8 {[%clk 0:01:41.9]} 18. Rac1
{[%clk 0:01:14.4]} 18... Ba7 {[%clk 0:01:37.4]} 19. Bg5 {[%clk 0:01:05.7]} 19...
h6 {[%clk 0:01:30.4]} 20. Bh4 {[%clk 0:01:05.7]} 20... Rf8 {[%clk 0:01:06.8]}
21. Bb1 {[%clk 0:01:00.9]} 21... Nce8 {[%clk 0:01:05.7]} 22. Rfe1 {[%clk
0:00:55.1]} 22... g5 {[%clk 0:00:45.5]} 23. Nxg5 {[%clk 0:00:44.9]} 23... hxg5
{[%clk 0:00:44.3]} 24. Bxg5 {[%clk 0:00:45.1]} 24... Qb6 {[%clk 0:00:33]} 25.
Re3 {[%clk 0:00:38.2]} 25... Kg7 {[%clk 0:00:26.7]} 26. Rf3 {[%clk 0:00:37.9]}
26... Rh8 {[%clk 0:00:21.6]} 27. Re1 {[%clk 0:00:35.4]} 27... Qd4 {[%clk
0:00:16.1]} 28. Qf5 {[%clk 0:00:10.3]} 28... Rxc3 {[%clk 0:00:11.6]} 29. Rxe8
{[%clk 0:00:07]} 29... Rxf3 {[%clk 0:00:07.4]} 30. Bxf6+ {[%clk 0:00:03.4]}
30... Qxf6 {[%clk 0:00:08.3]} 0-1

[Event "Late-Titled-Tuesday-Blitz-April-23-2024"]
[Site "Chess.com"]
[Date "2024.04.23"]
[Round "2"]
[White "Viktoker"]
[Black "Naoki"]
[Result "0-1"]
[WhiteElo "2345"]
[BlackElo "2537"]
[TimeControl "180+1"]
[EndTime "14:18:12 PDT"]
[Termination "Naoki won by resignation"]

1. d4 {[%clk 0:03:00.9]} 1... Nf6 {[%clk 0:02:58.1]} 2. Bf4 {[%clk 0:03:00.1]}
2... g6 {[%clk 0:02:58.1]} 3. Nc3 {[%clk 0:02:59.4]} 3... d5 {[%clk 0:02:58.6]}
4. e3 {[%clk 0:02:58.3]} 4... Bg7 {[%clk 0:02:58.3]} 5. h4 {[%clk 0:02:58.7]}
5... h5 {[%clk 0:02:58.3]} 6. Nf3 {[%clk 0:02:58.3]} 6... Bg4 {[%clk 0:02:58.3]}
7. Qd2 {[%clk 0:02:55.6]} 7... c5 {[%clk 0:02:54.2]} 8. Ne5 {[%clk 0:02:48.6]}
8... Nc6 {[%clk 0:02:50.6]} 9. Nxg4 {[%clk 0:02:38.1]} 9... hxg4 {[%clk
0:02:46.3]} 10. Be2 {[%clk 0:02:29.4]} 10... Rc8 {[%clk 0:02:39.1]} 11. dxc5
{[%clk 0:02:27.6]} 11... Qa5 {[%clk 0:02:30.9]} 12. Rd1 {[%clk 0:02:23.1]} 12...
e6 {[%clk 0:01:57.6]} 13. Bg5 {[%clk 0:02:21.7]} 13... Qxc5 {[%clk 0:01:54.5]}
14. O-O {[%clk 0:02:16.3]} 14... Ne5 {[%clk 0:01:48.8]} 15. Bb5+ {[%clk
0:02:10.4]} 15... Nfd7 {[%clk 0:01:42.9]} 16. e4 {[%clk 0:01:57.8]} 16... Nc4
{[%clk 0:00:59.2]} 17. Bxd7+ {[%clk 0:01:42.1]} 17... Kxd7 {[%clk 0:00:57.6]}
18. Qe2 {[%clk 0:01:42.7]} 18... d4 {[%clk 0:00:52.2]} 19. Qxg4 {[%clk
0:01:21.3]} 19... Nxb2 {[%clk 0:00:49.5]} 20. Nd5 {[%clk 0:01:06.4]} 20... Nxd1
{[%clk 0:00:37.7]} 21. Rxd1 {[%clk 0:01:07.3]} 21... f5 {[%clk 0:00:37.1]} 22.
Qf4 {[%clk 0:00:20.5]} 22... Qxc2 {[%clk 0:00:26]} 23. Rd2 {[%clk 0:00:06.5]}
23... Qc1+ {[%clk 0:00:17.9]} 24. Kh2 {[%clk 0:00:07.1]} 24... exd5 {[%clk
0:00:16]} 25. exf5 {[%clk 0:00:07.2]} 25... Qc7 {[%clk 0:00:15.9]} 26. f6 {[%clk
0:00:07.4]} 26... Qxf4+ {[%clk 0:00:15.6]} 27. Bxf4 {[%clk 0:00:08]} 27... Bxf6
{[%clk 0:00:16.5]} 28. g3 {[%clk 0:00:07.8]} 28... Ke6 {[%clk 0:00:16.7]} 29.
Kg2 {[%clk 0:00:08]} 29... Rc4 {[%clk 0:00:16.5]} 30. Re2+ {[%clk 0:00:07.9]}
30... Kf7 {[%clk 0:00:17.1]} 31. Rb2 {[%clk 0:00:06.6]} 31... b6 {[%clk
0:00:17.1]} 32. Rb5 {[%clk 0:00:06.2]} 32... Rc5 {[%clk 0:00:17.8]} 33. Rb4
{[%clk 0:00:06.2]} 33... Rhc8 {[%clk 0:00:16.5]} 34. Rb3 {[%clk 0:00:06.7]}
34... Rc2 {[%clk 0:00:14]} 35. Rf3 {[%clk 0:00:07.6]} 35... R8c3 {[%clk
0:00:13.6]} 36. Be5 {[%clk 0:00:05.5]} 36... Rxf3 {[%clk 0:00:13.7]} 0-1

[Event "Late-Titled-Tuesday-Blitz-April-23-2024"]
[Site "Chess.com"]
[Date "2024.04.23"]
[Round "2"]
[White "profedechess93"]
[Black "nihalsarin"]
[Result "0-1"]
[WhiteElo "2686"]
[BlackElo "3138"]
[TimeControl "180+1"]
[EndTime "14:18:15 PDT"]
[Termination "nihalsarin won by resignation"]

1. e4 {[%clk 0:03:00.9]} 1... g6 {[%clk 0:02:52.3]} 2. d4 {[%clk 0:03:00.4]}
2... Bg7 {[%clk 0:02:50.5]} 3. Nc3 {[%clk 0:03:01]} 3... a6 {[%clk 0:02:49.4]}
4. Be3 {[%clk 0:03:00.9]} 4... b5 {[%clk 0:02:49.2]} 5. Qd2 {[%clk 0:02:58.9]}
5... Bb7 {[%clk 0:02:48.7]} 6. f3 {[%clk 0:02:59.2]} 6... d6 {[%clk 0:02:38.6]}
7. h4 {[%clk 0:02:59.1]} 7... h6 {[%clk 0:02:33]} 8. a4 {[%clk 0:02:54.8]} 8...
b4 {[%clk 0:02:32]} 9. Na2 {[%clk 0:02:55.4]} 9... a5 {[%clk 0:02:31.9]} 10. c3
{[%clk 0:02:56.1]} 10... bxc3 {[%clk 0:02:29.7]} 11. Nxc3 {[%clk 0:02:57]} 11...
Nd7 {[%clk 0:02:29.5]} 12. h5 {[%clk 0:02:52]} 12... g5 {[%clk 0:02:29.1]} 13.
Bc4 {[%clk 0:02:40.5]} 13... Nb6 {[%clk 0:02:28.5]} 14. Bb5+ {[%clk 0:02:38.5]}
14... c6 {[%clk 0:02:28.2]} 15. Bd3 {[%clk 0:02:39.1]} 15... Nf6 {[%clk
0:02:27.6]} 16. Nge2 {[%clk 0:02:36.1]} 16... Nfd7 {[%clk 0:02:25.4]} 17. Ng3
{[%clk 0:02:33.9]} 17... e6 {[%clk 0:02:26]} 18. O-O {[%clk 0:02:31.4]} 18...
O-O {[%clk 0:02:05.3]} 19. Rad1 {[%clk 0:02:18.2]} 19... Ba6 {[%clk 0:01:57]}
20. Bxa6 {[%clk 0:02:13.5]} 20... Rxa6 {[%clk 0:01:57.9]} 21. b3 {[%clk
0:02:13.1]} 21... c5 {[%clk 0:01:49.6]} 22. Nb5 {[%clk 0:02:11.2]} 22... c4
{[%clk 0:01:48.8]} 23. Qa2 {[%clk 0:01:59.2]} 23... cxb3 {[%clk 0:01:48.4]} 24.
Qxb3 {[%clk 0:01:58.3]} 24... d5 {[%clk 0:01:49.3]} 25. f4 {[%clk 0:01:40.4]}
25... Nc4 {[%clk 0:01:40]} 26. f5 {[%clk 0:01:33.6]} 26... Qe7 {[%clk
0:01:28.5]} 27. e5 {[%clk 0:01:05.9]} 27... Qb4 {[%clk 0:01:23.1]} 28. Qd3
{[%clk 0:00:31.7]} 28... Nb2 {[%clk 0:01:22.2]} 29. Qe2 {[%clk 0:00:26.3]} 29...
Nxd1 {[%clk 0:01:22.5]} 30. Rxd1 {[%clk 0:00:27.2]} 30... Qc4 {[%clk 0:01:16.9]}
31. Qd2 {[%clk 0:00:27.4]} 31... Qxa4 {[%clk 0:01:12]} 32. Nc3 {[%clk
0:00:17.7]} 32... Qc4 {[%clk 0:01:11.4]} 33. f6 {[%clk 0:00:17.4]} 33... Nxf6
{[%clk 0:01:11.1]} 34. exf6 {[%clk 0:00:17.3]} 34... Bxf6 {[%clk 0:01:12]} 35.
Rf1 {[%clk 0:00:17.3]} 35... Bg7 {[%clk 0:01:10.9]} 36. Nce2 {[%clk 0:00:08.8]}
36... Kh8 {[%clk 0:00:53.4]} 37. Kh1 {[%clk 0:00:05.4]} 37... a4 {[%clk
0:00:53]} 38. Bxg5 {[%clk 0:00:05.4]} 38... hxg5 {[%clk 0:00:53]} 39. Qxg5
{[%clk 0:00:06.3]} 39... Qd3 {[%clk 0:00:40.8]} 40. h6 {[%clk 0:00:05.4]} 40...
Qh7 {[%clk 0:00:41.5]} 41. Kg1 {[%clk 0:00:04.6]} 41... Qxh6 {[%clk 0:00:40.9]}
42. Qe7 {[%clk 0:00:05.2]} 42... Kg8 {[%clk 0:00:40]} 43. Nf4 {[%clk 0:00:04.6]}
43... Bxd4+ {[%clk 0:00:40]} 0-1

[Event "Late-Titled-Tuesday-Blitz-April-23-2024"]
[Site "Chess.com"]
[Date "2024.04.23"]
[Round "2"]
[White "Fins0905"]
[Black "B_nn_t"]
[Result "1/2-1/2"]
[WhiteElo "2781"]
[BlackElo "2557"]
[TimeControl "180+1"]
[EndTime "14:18:18 PDT"]
[Termination "Game drawn by agreement"]

1. Nf3 {[%clk 0:03:00.9]} 1... d5 {[%clk 0:02:59.2]} 2. d4 {[%clk 0:02:57.7]}
2... Nf6 {[%clk 0:02:58.9]} 3. c4 {[%clk 0:02:56.7]} 3... e6 {[%clk 0:02:59]} 4.
Bg5 {[%clk 0:02:56.1]} 4... Nbd7 {[%clk 0:02:52.4]} 5. cxd5 {[%clk 0:02:46]}
5... exd5 {[%clk 0:02:51.2]} 6. Nc3 {[%clk 0:02:46]} 6... h6 {[%clk 0:02:48.8]}
7. Bh4 {[%clk 0:02:45.7]} 7... Be7 {[%clk 0:02:40.6]} 8. e3 {[%clk 0:02:45.6]}
8... c6 {[%clk 0:02:39.3]} 9. Bd3 {[%clk 0:02:45.1]} 9... Ne4 {[%clk 0:02:38.9]}
10. Bxe7 {[%clk 0:02:44.3]} 10... Qxe7 {[%clk 0:02:38.9]} 11. Bxe4 {[%clk
0:02:44.3]} 11... dxe4 {[%clk 0:02:39.3]} 12. Nd2 {[%clk 0:02:44.7]} 12... Nf6
{[%clk 0:02:39.4]} 13. O-O {[%clk 0:02:44.6]} 13... O-O {[%clk 0:02:38.9]} 14.
Qc2 {[%clk 0:02:42.6]} 14... Bf5 {[%clk 0:02:37.9]} 15. f4 {[%clk 0:02:34.1]}
15... exf3 {[%clk 0:02:36.1]} 16. Qxf5 {[%clk 0:02:29.4]} 16... Qxe3+ {[%clk
0:02:35.6]} 17. Rf2 {[%clk 0:02:29.8]} 17... fxg2 {[%clk 0:02:31.1]} 18. Qe5
{[%clk 0:02:17.2]} 18... Qxf2+ {[%clk 0:02:04.2]} 19. Kxf2 {[%clk 0:02:18.1]}
19... Ng4+ {[%clk 0:02:04.8]} 20. Kxg2 {[%clk 0:02:18.6]} 20... Nxe5 {[%clk
0:02:05.4]} 21. dxe5 {[%clk 0:02:19.5]} 21... Rfe8 {[%clk 0:02:05.3]} 22. Nf3
{[%clk 0:02:06.8]} 22... Rad8 {[%clk 0:02:02.2]} 23. Kf2 {[%clk 0:02:03.6]}
23... g5 {[%clk 0:02:02]} 24. Ne4 {[%clk 0:02:00.9]} 24... Kg7 {[%clk
0:01:59.9]} 25. Nd6 {[%clk 0:01:59.4]} 25... Rxe5 {[%clk 0:01:50.6]} 26. Nxe5
{[%clk 0:01:56.1]} 26... Rxd6 {[%clk 0:01:50.9]} 27. Nc4 {[%clk 0:01:07.3]}
27... Rd4 {[%clk 0:01:44.9]} 28. b3 {[%clk 0:01:07.8]} 28... f5 {[%clk
0:01:36.8]} 29. h3 {[%clk 0:00:48.3]} 29... Rd3 {[%clk 0:01:31.1]} 30. Re1
{[%clk 0:00:36.6]} 30... b5 {[%clk 0:01:23.9]} 31. Ne5 {[%clk 0:00:19.8]} 31...
Rxh3 {[%clk 0:01:22.6]} 32. Nxc6 {[%clk 0:00:19.1]} 32... Rh2+ {[%clk
0:01:22.5]} 33. Kg3 {[%clk 0:00:18.7]} 33... Rxa2 {[%clk 0:01:23.4]} 34. b4
{[%clk 0:00:15.8]} 34... h5 {[%clk 0:01:18.8]} 35. Re6 {[%clk 0:00:15.4]} 35...
Ra3+ {[%clk 0:01:18]} 36. Kg2 {[%clk 0:00:15.7]} 36... f4 {[%clk 0:01:14.6]} 37.
Ne5 {[%clk 0:00:15.1]} 37... g4 {[%clk 0:01:14.6]} 38. Rg6+ {[%clk 0:00:14.8]}
38... Kh7 {[%clk 0:01:14.7]} 39. Rf6 {[%clk 0:00:15.3]} 39... Ra2+ {[%clk
0:01:13.2]} 40. Kg1 {[%clk 0:00:15.7]} 40... f3 {[%clk 0:01:10.6]} 41. Rf5
{[%clk 0:00:11.6]} 41... Kh6 {[%clk 0:01:09.8]} 42. Nd3 {[%clk 0:00:11.4]} 42...
Kg6 {[%clk 0:01:03.9]} 43. Rxb5 {[%clk 0:00:10.8]} 43... Rg2+ {[%clk 0:00:48.8]}
44. Kf1 {[%clk 0:00:10.9]} 44... Rd2 {[%clk 0:00:44.7]} 45. Nf4+ {[%clk
0:00:11.1]} 45... Kf6 {[%clk 0:00:44.6]} 46. Nxh5+ {[%clk 0:00:09]} 46... Ke6
{[%clk 0:00:45]} 47. Ra5 {[%clk 0:00:09.1]} 47... Rb2 {[%clk 0:00:43.1]} 48.
Nf4+ {[%clk 0:00:07.9]} 48... Kd6 {[%clk 0:00:40.7]} 49. Rxa7 {[%clk 0:00:07.6]}
49... Rxb4 {[%clk 0:00:39.4]} 50. Nd3 {[%clk 0:00:08]} 50... Rd4 {[%clk
0:00:37.2]} 51. Ne1 {[%clk 0:00:08.1]} 1/2-1/2